lending/lending_fUSD_20250406
["ID","MTS","AMOUNT","RATE_DAILY","PERIOD"]
[357251797,1743942696722,-5000.0,0.0019,120]
[357251798,1743942696731,-151.0,0.00191452,120]
[357251799,1743942696741,-163.78218448,0.00191781,120]
[357251800,1743942696750,-346.10875238,0.00191781,120]
[357251801,1743942696760,-346.10875238,0.0019863,120]
[357251802,1743942696770,-151.0,0.00199589,120]
[357251803,1743942696779,-654.0,0.00199737,120]
[357251804,1743942696788,-1500.0,0.002,120]
[357251805,1743942696799,-300.0,0.002,120]
[357251806,1743942696808,-150.0,0.002,120]
[357251807,1743942696817,-1500.0,0.002,89]
[357251808,1743942696826,-441.8957788,0.00200979,120]
[357251809,1743942696836,-354023.97966268,0.0020109,120]
[357251810,1743942696845,-654.0,0.00201796,120]
[357251811,1743942696854,-151.0,0.00203233,120]
[357251812,1743942696863,-654.0,0.00203855,120]
[357251813,1743942696872,-346.10875238,0.00205479,120]
[357251814,1743942696881,-654.0,0.00205914,120]
[357251815,1743942696890,-227.28011817,0.00205914,120]
[357251816,1743942696899,-151.0,0.00207726,120]
[357251817,1743942696909,-654.0,0.00207973,120]
[357251818,1743942696918,-654.0,0.00210032,120]
[357251819,1743942696927,-654.0,0.00212091,120]
[357251820,1743942696936,-346.10875238,0.00212329,120]
[357251821,1743942696945,-151.0,0.00215863,120]
[357251822,1743942696955,-156.04812651,0.0021611,120]
[357251823,1743942696964,-156.04812651,0.00217479,120]
[357251824,1743942696974,-156.04812651,0.00218849,120]
[357251825,1743942696983,-163.78218448,0.00219178,120]
[357251826,1743942696992,-346.10875238,0.00219178,120]
[357251827,1743942697002,-156.04812651,0.00220219,120]
[357251828,1743942697011,-156.04812651,0.00221589,120]
[357251829,1743942697021,-156.04812651,0.00222932,120]
[357251830,1743942697030,-151.0,0.00223014,120]
[357251831,1743942697039,-151.0,0.00224,120]
[357251832,1743942697047,-156.04812651,0.00224301,120]
[357251833,1743942697057,-156.04812651,0.00225671,120]
[357251834,1743942697066,-346.10875238,0.00226027,120]
[357251835,1743942697074,-151.0,0.00232137,120]
[357251836,1743942697084,-346.10875238,0.00232877,120]
[357251837,1743942697092,-346.10875238,0.00239726,120]
[357251838,1743942697102,-450.0,0.0024,120]
[357251839,1743942697111,-5000.0,0.0024,120]
[357251840,1743942697120,-1476.57,0.0024,96]
[357251841,1743942697129,-151.0,0.00240274,120]
[357251842,1743942697138,-151.0,0.00242795,120]
[357251843,1743942697149,-200.0,0.00244,120]
[357251844,1743942697159,-2000.0,0.002449,120]
[357251845,1743942697168,-163.78218448,0.00246575,120]
[357251846,1743942697186,-346.10875238,0.00246575,120]
[357251847,1743942697202,-151.0,0.00248411,120]
[357251848,1743942697222,-2000.0,0.0025,120]
[357251849,1743942697241,-15000.0,0.0025,120]
[357251850,1743942697256,-2052.27,0.0025,120]
[357251851,1743942697274,-331.55305045,0.0025,10]
[357251852,1743942697294,-346.10875238,0.00253425,120]
[357251853,1743942697312,-151.0,0.00256548,120]
[357251854,1743942697329,-1381.29508033,0.002574,120]
[357251855,1743942697348,-1670.58,0.0026,60]
[357251856,1743942697364,-346.10875238,0.00260274,120]
[357251857,1743942697378,-151.0,0.00262575,120]
[357251858,1743942697394,-151.0,0.00264685,120]
[357251859,1743942697410,-1000.0,0.0026629,120]
[357251860,1743942697425,-346.10875238,0.00267123,120]
[357251861,1743942697440,-151.0,0.00272822,120]
[357251862,1743942697455,-163.78,0.00273973,120]
[357251863,1743942697470,-346.1,0.00273973,120]
[357251864,1743942697484,-150.0,0.0028,120]
[357251865,1743942697499,-151.0,0.00280959,120]
[357251866,1743942697513,-151.0,0.00282356,120]
[357251867,1743942697528,-8021.88,0.0028377,120]
[357251868,1743942697542,-151.0,0.00289096,120]
[357251869,1743942697557,-5000.0,0.0029,120]
[357251870,1743942697571,-151.0,0.00297233,120]
[357251871,1743942697586,-6778.97,0.002999,120]
[357251872,1743942697600,-2500.0,0.003,120]
[357251873,1743942697615,-300.0,0.003,120]
[357251874,1743942697630,-500.0,0.003,120]
[357251875,1743942697644,-1500.0,0.003,120]
[357251876,1743942697658,-10000.0,0.003,90]
[357251877,1743942697672,-1944.2772073,0.003,120]
[357251878,1743942697686,-3920.68412729,0.003,120]
[357251879,1743942697701,-151.0,0.00302137,120]
[357251880,1743942697715,-200.0,0.00304097,120]
[357251881,1743942697729,-151.0,0.0030537,120]
[357251882,1743942697744,-200.0,0.00305539,120]
[357251883,1743942697757,-200.0,0.0030698,120]
[357251884,1743942697771,-200.0,0.003098,120]
[357251885,1743942697786,-203.716824,0.00312619,120]
[357251886,1743942697800,-151.0,0.00313507,120]
[357251887,1743942697813,-3500.7,0.0032,120]
[357251888,1743942697828,-151.0,0.00321644,120]
[357251889,1743942697842,-151.0,0.00321918,120]
[357251890,1743942697857,-151.0,0.00329781,120]
[357251891,1743942697872,-210.0,0.0033018,120]
[357251892,1743942697887,-150.0,0.00336441,120]
[357251893,1743942697901,-151.0,0.00337918,120]
[357251894,1743942697916,-450.0,0.0034,120]
[357251895,1743942697930,-151.0,0.00341699,120]
[357251896,1743942697944,-200.0,0.00344,120]
[357251897,1743942697959,-2000.0,0.00345,120]
[357251898,1743942697973,-151.0,0.00346055,120]
[357251899,1743942697989,-4000.0,0.0035,120]
[357251900,1743942698004,-15000.0,0.0035,120]
[357251901,1743942698017,-151.0,0.00354192,120]
[357251902,1743942698032,-1208.0,0.00357123,107]
[357251903,1743942698045,-151.0,0.00361479,120]
[357251904,1743942698060,-151.0,0.00362329,120]
[357251905,1743942698074,-210.0,0.003638,120]
[357251906,1743942698088,-151.0,0.00370466,120]
[357251907,1743942698102,-151.0,0.00378603,120]
[357251908,1743942698116,-150.0,0.0038,120]
[357251909,1743942698132,-151.0,0.0038126,120]
[357251910,1743942698148,-151.0,0.0038674,120]
[357251911,1743942698165,-775.53648841,0.00389645,120]
[357251912,1743942698180,-500.0,0.0039,120]
[357251913,1743942698328,-151.0,0.00394877,120]
[357251914,1743942698338,-210.0,0.0039742,120]
[357251915,1743942698348,-4500.0,0.004,120]
[357251916,1743942698357,-300.0,0.004,120]
[357251917,1743942698367,-2853.62539944,0.004,120]
[357251918,1743942698376,-151.0,0.00401041,120]
[357251919,1743942698385,-151.0,0.00403014,120]
[357251920,1743942698394,-1000.0,0.00409772,120]
[357251921,1743942698404,-151.0,0.00411151,120]
[357251922,1743942698413,-152.0,0.00415888,3]
[357251923,1743942698422,-151.0,0.00419288,120]
[357251924,1743942698431,-151.0,0.00420822,120]
[357251925,1743942698441,-151.0,0.00427425,120]
[357251926,1743942698450,-7999.89,0.004306,2]
[357251927,1743942698461,-210.0,0.0043104,120]
[357251928,1743942698470,-151.0,0.00435562,120]
[357251929,1743942698479,-152.0,0.00439762,4]
[357251930,1743942698488,-200.0,0.0044,120]
[357251931,1743942698497,-450.0,0.0044,120]
[357251932,1743942698506,-151.0,0.00440603,120]
[357251933,1743942698515,-151.0,0.00443699,120]
[357251934,1743942698524,-2000.0,0.00445,120]
[357251935,1743942698534,-2000.0,0.00445,120]
[357251936,1743942698542,-2000.0,0.00445,120]
[357251937,1743942698551,-7999.99999901,0.00445,120]
[357251938,1743942698560,-151.0,0.00451836,120]
[357251939,1743942698569,-10084.60566803,0.0045885,120]
[357251940,1743942698578,-151.0,0.00459973,120]
[357251941,1743942698588,-199.64,0.0046,120]
[357251942,1743942698597,-151.0,0.00460384,120]
[357251943,1743942698607,-152.0,0.00463636,5]
[357251944,1743942698616,-210.0,0.0046466,120]
[357251945,1743942698625,-151.0,0.0046811,120]
[357251946,1743942698635,-1640.0,0.00470876,86]
[357251947,1743942698644,-151.0,0.00476247,120]
[357251948,1743942698653,-151.0,0.00480164,120]
[357251949,1743942698663,-151.0,0.00484384,120]
[357251950,1743942698672,-152.0,0.0048751,6]
[357251951,1743942698682,-121425.893864,0.004888,120]
[357251952,1743942698691,-2673.88112762,0.0049,80]
[357251953,1743942698701,-151.0,0.00492521,120]
[357251954,1743942698710,-3603.06,0.00495,120]
[357251955,1743942698720,-210.0,0.0049828,120]
[357251956,1743942698729,-999.72,0.00498322,30]
[357251957,1743942698739,-288.0,0.00499945,120]
[357251958,1743942698747,-5000.0,0.005,120]
[357251959,1743942698757,-5000.0,0.005,120]
[357251960,1743942698766,-300.0,0.005,120]
[357251961,1743942698775,-2000.0,0.005,120]
[357251962,1743942698785,-10000.0,0.005,90]
[357251963,1743942698794,-3181.17,0.005,120]
[357251964,1743942698803,-157.0,0.005,120]
[357251965,1743942698813,-397.0,0.00500658,120]
[357251966,1743942698823,-152.0,0.00511384,7]
[357251967,1743942698832,-200.0,0.00512,120]
[357251968,1743942698841,-500.0,0.0052,120]
[357251969,1743942698851,-210.0,0.005319,120]
[357251970,1743942698859,-224642.91320057,0.005338,2]
[357251971,1743942698869,-412.9,0.00534521,30]
[357251972,1743942698878,-152.0,0.00535259,8]
[357251973,1743942698887,-999.72,0.0053726,30]
[357251974,1743942698897,-999.72,0.0053726,30]
[357251975,1743942698907,-999.72,0.0053726,30]
[357251976,1743942698916,-999.72,0.0053726,30]
[357251977,1743942698926,-999.72,0.0053726,30]
[357251978,1743942698936,-999.72,0.0053726,30]
[357251979,1743942698945,-999.72,0.0053726,30]
[357251980,1743942698954,-999.72,0.0053726,30]
[357251981,1743942698963,-999.72,0.0053726,30]
[357251982,1743942698972,-999.72,0.0053726,30]
[357251983,1743942698981,-999.72,0.0053726,30]
[357251984,1743942698991,-999.72,0.0053726,30]
[357251985,1743942699002,-999.72,0.0053726,30]
[357251986,1743942699013,-999.72,0.0053726,30]
[357251987,1743942699022,-999.72,0.0053726,30]
[357251988,1743942699031,-999.72,0.0053726,30]
[357251989,1743942699041,-152.39,0.0053726,30]
[357251990,1743942699050,-999.72,0.0053726,30]
[357251991,1743942699059,-999.72,0.0053726,30]
[357251992,1743942699068,-999.72,0.0053726,30]
[357251993,1743942699077,-999.72,0.0053726,30]
[357251994,1743942699086,-999.72,0.0053726,30]
[357251995,1743942699095,-784.62,0.00537397,30]
[357251996,1743942699104,-445.06,0.00537397,30]
[357251997,1743942699113,-784.62,0.00537397,30]
[357251998,1743942699123,-445.06,0.00537397,30]
[357251999,1743942699132,-445.06,0.00537397,30]
[357252000,1743942699141,-784.62,0.00537397,30]
[357252001,1743942699152,-784.62,0.00537397,30]
[357252002,1743942699163,-445.06,0.00537397,30]
[357252003,1743942699172,-206.36,0.00537397,30]
[357252004,1743942699181,-251.55,0.00537397,30]
[357252005,1743942699190,-999.72,0.00538082,30]
[357252006,1743942699201,-999.72,0.00538082,30]
[357252007,1743942699210,-150.0,0.00538904,30]
[357252008,1743942699219,-165.95,0.00538904,30]
[357252009,1743942699230,-169.32,0.00538904,30]
[357252010,1743942699239,-150.0,0.00538904,30]
[357252011,1743942699248,-155.67,0.00538904,30]
[357252012,1743942699257,-300.0,0.00538904,30]
[357252013,1743942699266,-359.27,0.00538904,30]
[357252014,1743942699275,-456.35,0.00538904,30]
[357252015,1743942699285,-347.84,0.00538904,30]
[357252016,1743942699294,-150.0,0.00538904,30]
[357252017,1743942699303,-150.0,0.00538904,30]
[357252018,1743942699312,-150.0,0.00538904,30]
[357252019,1743942699323,-150.0,0.00538904,30]
[357252020,1743942699332,-444.54,0.00538904,30]
[357252021,1743942699341,-347.84,0.00538904,30]
[357252022,1743942699350,-150.0,0.00538904,30]
[357252023,1743942699359,-150.0,0.00538904,30]
[357252024,1743942699368,-150.0,0.00538904,30]
[357252025,1743942699378,-150.0,0.00538904,30]
[357252026,1743942699387,-444.54,0.00538904,30]
[357252027,1743942699396,-444.54,0.00538904,30]
[357252028,1743942699405,-150.0,0.00538904,30]
[357252029,1743942699414,-150.0,0.00538904,30]
[357252030,1743942699424,-150.0,0.00538904,30]
[357252031,1743942699433,-150.0,0.00538904,30]
[357252032,1743942699442,-150.0,0.00538904,30]
[357252033,1743942699451,-150.0,0.00538904,30]
[357252034,1743942699460,-444.54,0.00538904,30]
[357252035,1743942699469,-397.95,0.00538904,30]
[357252036,1743942699479,-308.03,0.00538904,30]
[357252037,1743942699487,-150.0,0.00539726,30]
[357252038,1743942699496,-450.0,0.0054,120]
[357252039,1743942699506,-5000.0,0.0055,120]
[357252040,1743942699515,-2530.30380942,0.0055335,120]
[357252041,1743942699524,-152.0,0.00559133,9]
[357252042,1743942699533,-1354.1,0.0055989,87]
[357252043,1743942699542,-212.0,0.0056552,120]
[357252044,1743942699551,-210.0,0.0056552,120]
[357252045,1743942699561,-500.0,0.0058,120]
[357252046,1743942699571,-152.0,0.00583007,10]
[357252047,1743942699581,-40382.69867003,0.0059,30]
[357252048,1743942699590,-5000.0,0.0059,120]
[357252049,1743942699599,-212.0,0.0059914,120]
[357252050,1743942699609,-209.0,0.0059914,120]
[357252051,1743942699619,-210.0,0.0059914,120]
[357252052,1743942699628,-300.0,0.006,120]
[357252053,1743942699638,-10000.0,0.006,90]
[357252054,1743942699647,-151.0,0.006,120]
[357252055,1743942699656,-151.0,0.006,120]
[357252056,1743942699665,-1769.656866,0.006,114]
[357252057,1743942699675,-160478.84947437,0.006,120]
[357252058,1743942699684,-40227.06173192,0.006,120]
[357252059,1743942699694,-586.93584529,0.006,120]
[357252060,1743942699704,-1278.0,0.006,120]
[357252061,1743942699713,-152.0,0.00606881,11]
[357252062,1743942699723,-675.12231661,0.00607,120]
[357252063,1743942699817,-1000.0,0.0062262,120]
[357252064,1743942699828,-123341.11788313,0.0062767,120]
[357252065,1743942699837,-723.96189103,0.0063,120]
[357252066,1743942699847,-5000.0,0.0063,120]
[357252067,1743942699856,-150.0,0.0063,120]
[357252068,1743942699865,-150.0,0.0063,120]
[357252069,1743942699875,-150.0,0.0063,120]
[357252070,1743942699885,-150.0,0.0063,120]
[357252071,1743942699894,-283.0,0.0063,120]
[357252072,1743942699904,-150.0,0.00630714,120]
[357252073,1743942699913,-152.0,0.00630755,12]
[357252074,1743942699922,-150.0,0.00631429,120]
[357252075,1743942699932,-150.0,0.00632143,120]
[357252076,1743942699941,-150.0,0.00632333,120]
[357252077,1743942699950,-212.0,0.0063276,120]
[357252078,1743942699959,-209.0,0.0063276,120]
[357252079,1743942699969,-210.0,0.0063276,120]
[357252080,1743942699978,-150.0,0.00632857,120]
[357252081,1743942699988,-150.0,0.00633571,120]
[357252082,1743942699997,-150.0,0.00634118,120]
[357252083,1743942700007,-150.0,0.00634286,120]
[357252084,1743942700017,-150.0,0.00634667,120]
[357252085,1743942700026,-150.0,0.00635,120]
[357252086,1743942700036,-150.0,0.00635714,120]
[357252087,1743942700046,-150.0,0.00636429,120]
[357252088,1743942700056,-150.0,0.00637,120]
[357252089,1743942700065,-150.0,0.00637143,120]
[357252090,1743942700075,-150.0,0.00637857,120]
[357252091,1743942700085,-150.0,0.00638235,120]
[357252092,1743942700094,-150.0,0.00638571,120]
[357252093,1743942700105,-150.0,0.00639286,120]
[357252094,1743942700114,-150.0,0.00639333,120]
[357252095,1743942700124,-200.0,0.0064,120]
[357252096,1743942700134,-450.0,0.0064,120]
[357252097,1743942700144,-150.0,0.0064,120]
[357252098,1743942700156,-150.0,0.00640714,120]
[357252099,1743942700166,-150.0,0.00641429,120]
[357252100,1743942700175,-150.0,0.00641667,120]
[357252101,1743942700185,-150.0,0.00641667,120]
[357252102,1743942700195,-150.0,0.00642143,120]
[357252103,1743942700205,-150.0,0.00642353,120]
[357252104,1743942700214,-150.0,0.00642857,120]
[357252105,1743942700224,-150.0,0.00643571,120]
[357252106,1743942700235,-150.0,0.00644,120]
[357252107,1743942700244,-150.0,0.00644286,120]
[357252108,1743942700254,-150.0,0.00645,120]
[357252109,1743942700263,-150.0,0.00645714,120]
[357252110,1743942700273,-150.0,0.00646333,120]
[357252111,1743942700282,-150.0,0.00646429,120]
[357252112,1743942700291,-150.0,0.00646471,120]
[357252113,1743942700300,-150.0,0.00647143,120]
[357252114,1743942700309,-150.0,0.00647857,120]
[357252115,1743942700318,-150.0,0.00648571,120]
[357252116,1743942700327,-150.0,0.00648667,120]
[357252117,1743942700337,-45338.33328882,0.00649,120]
[357252118,1743942700346,-150.0,0.00649286,120]
[357252119,1743942700355,-5000.0,0.0065,120]
[357252120,1743942700365,-25038.74855001,0.0065,120]
[357252121,1743942700374,-150.0,0.0065,120]
[357252122,1743942700383,-1019.74904033,0.0065,120]
[357252123,1743942700393,-2416.60167643,0.0065,120]
[357252124,1743942700402,-150.0,0.00650588,120]
[357252125,1743942700412,-150.0,0.00650714,120]
[357252126,1743942700422,-150.0,0.00651,120]
[357252127,1743942700431,-150.0,0.00651429,120]
[357252128,1743942700441,-150.0,0.00652143,120]
[357252129,1743942700450,-150.0,0.00652857,120]
[357252130,1743942700459,-150.0,0.00653333,120]
[357252131,1743942700470,-150.0,0.00653333,120]
[357252132,1743942700480,-150.0,0.00653571,120]
[357252133,1743942700490,-150.0,0.00654286,120]
[357252134,1743942700500,-152.0,0.00654629,13]
[357252135,1743942700510,-150.0,0.00654706,120]
[357252136,1743942700520,-150.0,0.00655,120]
[357252137,1743942700530,-150.0,0.00655667,120]
[357252138,1743942700540,-150.0,0.00655714,120]
[357252139,1743942700549,-150.0,0.00656429,120]
[357252140,1743942700559,-150.0,0.00657143,120]
[357252141,1743942700568,-150.0,0.00657857,120]
[357252142,1743942700578,-150.0,0.00658,120]
[357252143,1743942700587,-15131.65382209,0.0065854,120]
[357252144,1743942700597,-150.0,0.00658571,120]
[357252145,1743942700607,-150.0,0.00658824,120]
[357252146,1743942700616,-150.0,0.00659286,120]
[357252147,1743942700626,-500.0,0.0066,120]
[357252148,1743942700635,-150.0,0.0066,120]
[357252149,1743942700646,-150.0,0.00660333,120]
[357252150,1743942700656,-150.0,0.00660714,120]
[357252151,1743942700666,-150.0,0.00661429,120]
[357252152,1743942700676,-150.0,0.00662143,120]
[357252153,1743942700686,-150.0,0.00662667,120]
[357252154,1743942700695,-150.0,0.00662857,120]
[357252155,1743942700706,-150.0,0.00662941,120]
[357252156,1743942700715,-150.0,0.00663571,120]
[357252157,1743942700725,-150.0,0.00664286,120]
[357252158,1743942700736,-150.0,0.00665,120]
[357252159,1743942700745,-150.0,0.00665,120]
[357252160,1743942700755,-150.0,0.00665,120]
[357252161,1743942700764,-150.0,0.00665714,120]
[357252162,1743942700774,-675.12231661,0.00666267,120]
[357252163,1743942700783,-212.0,0.0066638,120]
[357252164,1743942700792,-209.0,0.0066638,120]
[357252165,1743942700802,-210.0,0.0066638,120]
[357252166,1743942700811,-150.0,0.00666429,120]
[357252167,1743942700821,-150.0,0.00667059,120]
[357252168,1743942700830,-150.0,0.00667143,120]
[357252169,1743942700839,-150.0,0.00667333,120]
[357252170,1743942700849,-810127.47314206,0.00667611,120]
[357252171,1743942700859,-150.0,0.00667857,120]
[357252172,1743942700868,-150.0,0.00668571,120]
[357252173,1743942700877,-150.0,0.00669286,120]
[357252174,1743942700887,-150.0,0.00669667,120]
[357252175,1743942700896,-150.0,0.0067,120]
[357252176,1743942700906,-150.0,0.00670714,120]
[357252177,1743942700915,-150.0,0.00671176,120]
[357252178,1743942700924,-150.0,0.00671429,120]
[357252179,1743942700934,-150.0,0.00672,120]
[357252180,1743942700943,-5050.13449,0.00672,30]
[357252181,1743942700953,-150.0,0.00672143,120]
[357252182,1743942700962,-150.0,0.00672857,120]
[357252183,1743942700972,-150.0,0.00673571,120]
[357252184,1743942700981,-150.0,0.00674286,120]
[357252185,1743942700990,-150.0,0.00674333,120]
[357252186,1743942700999,-150.0,0.00675,120]
[357252187,1743942701008,-150.0,0.00675294,120]
[357252188,1743942701017,-150.0,0.00675714,120]
[357252189,1743942701027,-150.0,0.00676429,120]
[357252190,1743942701036,-150.0,0.00676667,120]
[357252191,1743942701045,-150.0,0.00676667,120]
[357252192,1743942701055,-150.0,0.00677143,120]
[357252193,1743942701064,-150.0,0.00677857,120]
[357252194,1743942701074,-152.0,0.00678503,14]
[357252195,1743942701083,-150.0,0.00678571,120]
[357252196,1743942701093,-150.0,0.00679,120]
[357252197,1743942701102,-150.0,0.00679286,120]
[357252198,1743942701112,-150.0,0.00679412,120]
[357252199,1743942701122,-150.0,0.0068,120]
[357252200,1743942701131,-500.0,0.0068,120]
[357252201,1743942701141,-10000.0,0.0068,120]
[357252202,1743942701152,-150.0,0.00680714,120]
[357252203,1743942701163,-150.0,0.00681333,120]
[357252204,1743942701173,-150.0,0.00681429,120]
[357252205,1743942701182,-150.0,0.00682143,120]
[357252206,1743942701193,-150.0,0.00682857,120]
[357252207,1743942701204,-150.0,0.00683529,120]
[357252208,1743942701214,-150.0,0.00683571,120]
[357252209,1743942701224,-150.0,0.00683667,120]
[357252210,1743942701235,-150.0,0.00684286,120]
[357252211,1743942701246,-150.0,0.00685,120]
[357252212,1743942701255,-150.0,0.00685714,120]
[357252213,1743942701265,-150.0,0.00686,120]
[357252214,1743942701275,-150.0,0.00686429,120]
[357252215,1743942701284,-150.0,0.00687143,120]
[357252216,1743942701293,-150.0,0.00687647,120]
[357252217,1743942701303,-150.0,0.00687857,120]
[357252218,1743942701312,-37348.78010623,0.00688,120]
[357252219,1743942701322,-150.0,0.00688333,120]
[357252220,1743942701332,-150.0,0.00688333,120]
[357252221,1743942701341,-150.0,0.00688571,120]
[357252222,1743942701350,-203.0,0.00689,120]
[357252223,1743942701359,-10000.0,0.00689,120]
[357252224,1743942701369,-150.0,0.00689286,120]
[357252225,1743942701379,-217896.85397893,0.0069,120]
[357252226,1743942701388,-732.32406653,0.0069,120]
[357252227,1743942701399,-20000.0,0.0069,120]
[357252228,1743942701408,-2003.62171963,0.0069,120]
[357252229,1743942701417,-403990.16786282,0.0069,120]
[357252230,1743942701427,-150.0,0.0069,120]
[357252231,1743942701437,-150.0,0.00690667,120]
[357252232,1743942701447,-150.0,0.00690714,120]
[357252233,1743942701458,-150.0,0.00691429,120]
[357252234,1743942701467,-150.0,0.00691765,120]
[357252235,1743942701477,-42625.1461808,0.00691781,7]
[357252236,1743942701486,-187.87681589,0.00691781,7]
[357252237,1743942701496,-2160.95140434,0.00691781,7]
[357252238,1743942701506,-384.3273258,0.00691781,7]
[357252239,1743942701516,-150.0,0.00692143,120]
[357252240,1743942701526,-150.0,0.00692857,120]
[357252241,1743942701535,-150.0,0.00693,120]
[357252242,1743942701545,-150.0,0.00693571,120]
[357252243,1743942701555,-150.0,0.00694286,120]
[357252244,1743942701564,-224.0,0.00694713,120]
[357252245,1743942701574,-150.0,0.00695,120]
[357252246,1743942701583,-224.0,0.0069515,120]
[357252247,1743942701593,-224.0,0.0069515,120]
[357252248,1743942701602,-224.0,0.0069515,120]
[357252249,1743942701611,-224.0,0.0069515,120]
[357252250,1743942701621,-224.0,0.0069515,120]
[357252251,1743942701630,-224.0,0.0069515,120]
[357252252,1743942701640,-224.0,0.0069515,120]
[357252253,1743942701650,-224.0,0.0069515,120]
[357252254,1743942701659,-224.0,0.0069515,120]
[357252255,1743942701668,-224.0,0.0069515,120]
[357252256,1743942701677,-224.0,0.0069515,120]
[357252257,1743942701687,-224.0,0.0069515,120]
[357252258,1743942701695,-224.0,0.0069515,120]
[357252259,1743942701704,-224.0,0.0069515,120]
[357252260,1743942701714,-150.0,0.00695333,120]
[357252261,1743942701724,-224.0,0.00695585,120]
[357252262,1743942701732,-224.0,0.00695585,120]
[357252263,1743942701742,-224.0,0.00695585,120]
[357252264,1743942701751,-224.0,0.00695585,120]
[357252265,1743942701760,-224.0,0.00695585,120]
[357252266,1743942701769,-224.0,0.00695585,120]
[357252267,1743942701778,-224.0,0.00695585,120]
[357252268,1743942701787,-224.0,0.00695585,120]
[357252269,1743942701796,-224.0,0.00695585,120]
[357252270,1743942701805,-224.0,0.00695585,120]
[357252271,1743942701814,-224.0,0.00695585,120]
[357252272,1743942701824,-224.0,0.00695585,120]
[357252273,1743942701833,-224.0,0.00695585,120]
[357252274,1743942701842,-224.0,0.00695585,120]
[357252275,1743942701852,-150.0,0.00695714,120]
[357252276,1743942701862,-150.0,0.00695882,120]
[357252277,1743942701871,-224.0,0.00696021,120]
[357252278,1743942701880,-224.0,0.00696021,120]
[357252279,1743942701889,-224.0,0.00696021,120]
[357252280,1743942701898,-224.0,0.00696021,120]
[357252281,1743942701908,-224.0,0.00696021,120]
[357252282,1743942701917,-224.0,0.00696021,120]
[357252283,1743942701926,-224.0,0.00696021,120]
[357252284,1743942701937,-224.0,0.00696021,120]
[357252285,1743942701947,-224.0,0.00696021,120]
[357252286,1743942701956,-224.0,0.00696021,120]
[357252287,1743942701965,-224.0,0.00696021,120]
[357252288,1743942701974,-224.0,0.00696021,120]
[357252289,1743942701983,-224.0,0.00696021,120]
[357252290,1743942701993,-224.0,0.00696021,120]
[357252291,1743942702002,-150.0,0.00696429,120]
[357252292,1743942702113,-224.0,0.00696456,120]
[357252293,1743942702123,-224.0,0.00696456,120]
[357252294,1743942702132,-224.0,0.00696456,120]
[357252295,1743942702141,-224.0,0.00696456,120]
[357252296,1743942702153,-224.0,0.00696456,120]